bitfinex/quotes_SOLUSD_20240902
["timestamp","ask_amount","ask_price","bid_price","bid_amount"]
[1725241870999,33.75713071,130.35,130.31,45.0]
[1725241871202,31.83911335,130.35,130.31,45.0]
[1725241872579,9.58919352,130.36,130.31,45.0]
[1725241872787,7.6711,130.36,130.31,45.0]
[1725241874308,7.6711,130.36,130.3,7.6744]
[1725241874309,41.42872635,130.35,130.29,41.8355]
[1725241875200,41.42872635,130.35,130.3,7.6745]
[1725241875678,41.42872635,130.35,130.31,45.0]
[1725241875878,41.42872635,130.35,130.3,7.6745]
[1725241876479,41.42872635,130.35,130.31,45.0]
[1725241876996,41.42872635,130.35,130.3,7.6745]
[1725241878114,39.51071335,130.35,130.31,45.0]
[1725241878317,7.6712,130.36,130.31,45.0]
[1725241878497,41.4278944,130.37,130.32,1.53446318]
[1725241878687,41.4278944,130.37,130.31,52.6737]
[1725241880292,7.6713,130.36,130.31,52.6737]
[1725241882602,41.4278944,130.37,130.32,9.2075963]
[1725241882805,39.50961335,130.37,130.33,45.0]
[1725241885917,7.6695,130.39,130.34,7.6722]
[1725241886124,7.6695,130.39,130.35,45.0]
[1725241886421,9.58694958,130.39,130.35,45.0]
[1725241886598,39.50911335,130.38,130.33,19.1813]
[1725241886801,31.83911335,130.36,130.29,22.6488]
[1725241887017,1.91820759,130.35,130.29,22.6488]
[1725241887209,9.59040759,130.35,130.29,30.3235]
[1725241887892,9.59040759,130.35,130.3,7.6745]
[1725241888298,7.6722,130.35,130.3,7.6745]
[1725241888601,9.59026329,130.35,130.3,7.6745]
[1725241888918,9.59026329,130.35,130.31,45.0]
[1725241889421,7.6722,130.34,130.31,45.0]
[1725241889617,7.6722,130.34,130.27,7.6759]
[1725241889618,7.6735,130.32,130.27,7.6759]
[1725241889920,7.6729,130.33,130.28,7.6756]
[1725241890811,1.91849073,130.32,130.28,7.6756]
[1725241891114,7.6743,130.31,130.26,49.4807]
[1725241891290,39.51261335,130.32,130.26,49.4807]
[1725241891491,1.9185609,130.31,130.26,49.4807]
[1725241892538,1.9185609,130.31,130.27,45.0]
[1725241892844,39.51411335,130.3,130.24,7.6779]
[1725241893029,39.51411335,130.3,130.18,7.6816]
[1725241893030,7.6782,130.24,130.18,7.6816]
[1725241893233,1.91976875,130.23,130.17,15.9977]
[1725241893541,31.83911335,130.23,130.17,15.9977]
[1725241893744,39.51791335,130.23,130.17,42.8846]
[1725241893914,39.51791335,130.23,130.18,7.6815]
[1725241894116,31.83911335,130.23,130.18,7.6815]
[1725241895130,31.83911335,130.23,130.19,45.0]
[1725241896231,39.51671335,130.25,130.19,52.6807]
[1725241896921,39.51671335,130.25,130.2,7.6804]
[1725241897111,39.51671335,130.25,130.21,45.0]
[1725241901655,7.677,130.26,130.21,52.6798]
[1725241901840,9.59646466,130.26,130.21,52.6798]
[1725241903452,39.51671335,130.25,130.21,45.0]
[1725241903625,9.59772419,130.24,130.21,45.0]
[1725241903831,9.59772419,130.24,130.2,45.0]
[1725241904758,7.6781,130.24,130.2,52.6804]
[1725241905048,39.51671335,130.25,130.2,52.6804]
[1725241906046,39.51671335,130.25,130.21,7.6798]
[1725241906253,31.83911335,130.25,130.22,45.0]
[1725241907645,7.6771,130.26,130.22,45.0]
[1725241908846,9.59645851,130.26,130.22,45.0]
[1725241909540,7.6771,130.26,130.22,45.0]
[1725241909748,41.43498231,130.27,130.22,52.6792]
[1725241910771,39.51561335,130.27,130.22,52.6792]
[1725241911643,39.51561335,130.27,130.22,45.0]
[1725241911644,9.59647134,130.26,130.22,45.0]
[1725241911856,7.6776,130.25,130.22,45.0]
[1725241914969,39.51621335,130.26,130.23,45.0]
[1725241919589,9.59718995,130.25,130.21,19.1991]
[1725241919878,31.83911335,130.24,130.21,26.8789]
[1725241920048,12.72658411,130.24,130.21,26.8789]
[1725241920256,12.72658411,130.24,130.22,45.0]
[1725241921190,7.6787,130.23,130.19,7.681]
[1725241921489,12.72658411,130.22,130.19,7.681]
[1725241922065,39.50304015,130.23,130.18,26.8846]
[1725241922661,1.9199893,130.22,130.18,26.8846]
[1725241923479,9.5994893,130.22,130.18,19.2031]
[1725241923677,9.5994893,130.22,130.19,45.0]
[1725241923878,7.6795,130.22,130.19,45.0]
[1725241924879,1.91995569,130.26,130.2,1.53596348]
[1725241925087,7.6763,130.27,130.22,7.6791]
[1725241925271,33.74373014,130.26,130.2,7.6803]
[1725241925790,33.74373014,130.26,130.21,45.0]
[1725241925980,9.59731129,130.25,130.21,52.6797]
[1725241926582,39.50134015,130.26,130.22,7.6791]
[1725241926773,31.82434015,130.26,130.22,7.6791]
[1725241927086,31.82434015,130.26,130.23,45.0]
[1725241928079,24.1773,130.29,130.24,9.21351294]
[1725241928270,26.09643607,130.29,130.24,9.21351294]
[1725241928472,26.09643607,130.29,130.24,7.678]
[1725241931990,1.91913607,130.29,130.23,60.7446]
[1725241932193,1.91888425,130.32,130.29,7.6751]
[1725241932378,1.91888425,130.33,130.29,7.6751]
[1725241932691,41.41644574,130.32,130.27,26.8665]
[1725241933481,41.41644574,130.32,130.28,45.0]
[1725241933792,41.41644574,130.32,130.27,26.8665]
[1725241934379,7.675,130.3,130.25,7.6774]
[1725241934586,1.91878982,130.29,130.26,45.0]
[1725241934891,1.91878982,130.29,130.25,7.6774]
[1725241936404,9.59438982,130.29,130.24,26.8731]
[1725241936573,9.59438982,130.29,130.25,45.0]
[1725241939391,1.91883172,130.29,130.25,45.0]
[1725241940098,1.91883172,130.29,130.25,52.6774]
[1725241940608,7.6764,130.27,130.22,7.6788]
[1725241940798,33.74378973,130.26,130.22,7.6788]
[1725241941302,7.6764,130.27,130.23,7.6786]
[1725241941511,33.74363066,130.28,130.23,19.1957]
[1725241941687,41.41933066,130.28,130.23,26.8739]
[1725241941881,15.8057,130.3,130.23,26.8739]
[1725241941882,9.59447679,130.29,130.24,7.6779]
[1725241942081,12.71774048,130.28,130.25,45.0]
[1725241942312,9.59447679,130.29,130.25,7.6775]
[1725241942510,22.31221727,130.29,130.25,7.6775]
[1725241943182,12.71774048,130.29,130.26,7.6769]
[1725241943388,12.71774048,130.29,130.27,7.6761]
[1725241943603,20.39224048,130.31,130.27,7.6761]
[1725241943807,20.39224048,130.31,130.26,7.6767]
[1725241944115,1.91877279,130.3,130.26,7.6767]
[1725241944486,9.59333595,130.31,130.26,7.6767]
[1725241944986,9.59333595,130.31,130.27,45.0]
[1725241945183,1.91874385,130.33,130.29,7.6751]
[1725241945484,9.59194385,130.33,130.28,7.6756]
[1725241945691,1.9185616,130.32,130.28,7.6756]
[1725241945889,9.59175255,130.33,130.28,7.6756]
[1725241946205,9.59175255,130.33,130.29,45.0]
[1725241947814,1.91855255,130.33,130.29,52.6748]
[1725241949016,9.59135255,130.33,130.29,52.6748]
[1725241950707,9.59135255,130.33,130.29,45.0]
[1725241957415,7.6735,130.32,130.29,45.0]
[1725241957624,7.6735,130.32,130.28,7.6756]
[1725241958114,7.6735,130.32,130.26,15.771]
[1725241958115,1.91860751,130.31,130.26,15.771]
[1725241958318,1.91860751,130.31,130.27,45.0]
[1725241959035,31.78342113,130.3,130.24,19.1942]
[1725241959207,31.78342113,130.3,130.24,26.8723]
[1725241959208,7.6758,130.28,130.24,26.8723]
[1725241959404,39.45842113,130.3,130.25,7.6772]
[1725241960398,9.59417623,130.29,130.25,7.6772]
[1725241963222,9.59417623,130.29,130.24,19.1942]
[1725241963223,9.59417623,130.29,130.24,26.8722]
[1725241963395,9.59417623,130.29,130.25,45.0]
[1725241964123,12.71795909,130.28,130.25,45.0]
[1725241965130,20.39365909,130.28,130.25,45.0]
[1725241966745,12.71795909,130.28,130.25,52.6774]
[1725241967048,20.39325909,130.29,130.25,52.6774]
[1725241967546,1.91906858,130.28,130.25,52.6774]
[1725241968529,1.91906858,130.28,130.25,45.0]
[1725241969042,9.59506858,130.28,130.24,19.1942]
[1725241969241,9.59506858,130.28,130.21,19.1995]
[1725241969242,7.6781,130.24,130.21,19.1995]
[1725241969535,1.91967538,130.24,130.21,19.1995]
[1725241970040,22.31552583,130.25,130.21,26.8793]
[1725241970256,14.63762583,130.25,130.21,26.8793]
[1725241970750,14.63762583,130.25,130.19,24.3423]
[1725241970927,12.71795909,130.25,130.19,16.6613]
[1725241971130,12.71795909,130.25,130.21,7.6793]
[1725241972053,12.71795909,130.25,130.22,45.0]
[1725241972725,7.6757,130.29,130.24,7.6779]
[1725241972933,7.6758,130.28,130.25,45.0]
[1725241974342,22.31234674,130.29,130.25,52.6775]
[1725241975051,7.6747,130.3,130.26,7.6768]
[1725241975252,20.39265909,130.3,130.27,45.0]
[1725241975453,20.39265909,130.3,130.25,7.6773]
[1725241975748,20.39265909,130.3,130.26,45.0]
[1725241977550,20.39265909,130.3,130.26,52.6769]
[1725241977731,20.39265909,130.3,130.26,45.0]
[1725241977938,12.71795909,130.28,130.24,26.8721]
[1725241978152,20.39375909,130.28,130.25,45.0]
[1725241979256,7.6753,130.29,130.25,52.6774]
[1725241981257,20.39265909,130.3,130.26,7.6768]
[1725241982148,1.91883949,130.32,130.27,45.0]
[1725241982334,22.31069858,130.32,130.27,52.6762]
[1725241982865,20.39255909,130.3,130.27,45.0]
[1725241983053,12.71795909,130.3,130.27,52.6763]
[1725241986159,7.674,130.31,130.27,52.6763]
[1725241987339,1.91872715,130.3,130.27,52.6763]
[1725241987555,7.6752,130.29,130.27,45.0]
[1725241987870,12.71795909,130.28,130.25,7.677]
[1725241991873,1.91909062,130.27,130.2,15.8654]
[1725241992056,7.6776,130.25,130.2,42.7456]
[1725241992244,7.6776,130.25,130.21,7.6797]
[1725241992560,22.31332355,130.28,130.24,7.678]
[1725241992765,7.6758,130.28,130.24,7.678]
[1725241993462,7.6758,130.28,130.25,45.0]
[1725241994050,14.6370564,130.27,130.23,7.6786]
[1725241994369,7.6783,130.24,130.2,23.5454]
[1725241994566,9.59797517,130.24,130.2,7.68]
[1725241995139,9.59797517,130.24,130.19,25.2502]
[1725241995339,22.31661519,130.23,130.19,19.2017]
[1725241995541,20.39555909,130.25,130.2,7.6803]
[1725241996650,1.91952688,130.27,130.21,64.1987]
[1725241996870,14.63748597,130.27,130.21,64.1987]
[1725241997168,1.91935612,130.26,130.22,7.6792]
[1725241997354,14.63750069,130.27,130.22,7.6792]
[1725241997545,14.63750069,130.27,130.23,45.0]
[1725241998273,7.677,130.26,130.23,45.0]
[1725241998571,9.59638064,130.26,130.22,7.6792]
[1725242000070,7.677,130.26,130.22,7.6792]
[1725242000365,12.71795909,130.27,130.23,52.6786]
[1725242000670,14.63713494,130.27,130.23,52.6786]
[1725242001251,14.63713494,130.27,130.24,7.678]
[1725242001575,14.63713494,130.27,130.23,71.8747]
[1725242001873,22.31256892,130.29,130.24,9.21304786]
[1725242002172,25.57300655,130.3,130.25,64.193]
[1725242002173,21.62546564,130.3,130.25,64.193]
[1725242002464,7.6741,130.31,130.25,64.193]
[1725242003370,7.6741,130.31,130.27,7.6762]
[1725242003543,7.6741,130.31,130.28,45.0]
[1725242005454,22.31026246,130.32,130.28,52.6756]
[1725242006178,22.31026246,130.32,130.28,45.0]
[1725242006675,20.39145909,130.32,130.28,45.0]
[1725242006971,12.71795909,130.3,130.24,19.1947]
[1725242007279,12.71795909,130.28,130.24,19.1947]
[1725242008374,20.39415909,130.28,130.24,26.8727]
[1725242008569,12.71795909,130.3,130.25,52.6775]
[1725242008776,20.39255909,130.3,130.25,52.6775]
[1725242009590,1.91919827,130.33,130.25,45.0]
[1725242009881,14.63641369,130.35,130.28,6.139]
[1725242010052,14.63641369,130.35,130.31,7.6738]
[1725242010566,12.71795909,130.35,130.32,46.53444134]
[1725242010873,12.71795909,130.35,130.32,45.0]
[1725242012459,7.6705,130.37,130.32,52.6731]
[1725242012658,20.38845909,130.37,130.32,52.6731]
[1725242012858,1.91788875,130.36,130.32,52.6731]
[1725242017275,20.38845909,130.37,130.32,52.6731]
[1725242017576,20.38845909,130.37,130.33,7.6727]
[1725242018181,20.38845909,130.37,130.34,45.0]
[1725242019662,1.91775154,130.36,130.32,26.8562]
[1725242019857,1.91775154,130.36,130.33,45.0]
[1725242021076,14.76153281,130.35,130.29,19.187]
[1725242021286,12.71795909,130.33,130.29,19.187]
[1725242021463,1.91854849,130.32,130.29,19.187]
[1725242022180,9.59234849,130.32,130.27,22.7391]
[1725242022480,12.71795909,130.31,130.27,15.0629]
[1725242022669,1.91879686,130.3,130.26,26.8687]
[1725242023759,9.59359686,130.3,130.26,26.8687]
[1725242023964,9.59359686,130.3,130.26,19.1919]
[1725242027573,20.39335909,130.29,130.24,29.1923]
[1725242027758,20.39335909,130.29,130.25,45.0]
[1725242027959,9.59512646,130.28,130.24,15.2923]
[1725242028282,1.91902646,130.28,130.23,26.8744]
[1725242028673,9.59482646,130.28,130.24,7.6779]
[1725242028985,12.71795909,130.29,130.25,7.6774]
[1725242029364,12.71795909,130.29,130.26,45.0]
[1725242029564,22.31211658,130.29,130.24,7.6779]
[1725242029967,22.31211658,130.29,130.25,45.0]
[1725242030272,22.31211658,130.29,130.25,52.6774]
[1725242031264,22.31211658,130.29,130.25,45.0]
[1725242034393,22.31211658,130.29,130.25,52.6775]
[1725242034684,7.6758,130.28,130.24,7.6779]
[1725242034887,9.59500951,130.28,130.24,7.6779]
[1725242035090,20.39315909,130.29,130.25,45.0]
[1725242035691,12.71795909,130.29,130.25,71.8701]
[1725242035865,14.6369602,130.29,130.25,71.8701]
[1725242036065,22.3121602,130.29,130.25,71.8701]
[1725242036389,20.39315909,130.29,130.25,71.8701]
[1725242044600,1.91901883,130.28,130.25,71.8701]
[1725242045801,20.39315909,130.29,130.25,71.8701]
[1725242046004,1.91901826,130.32,130.27,19.1905]
[1725242046184,15.2634,130.35,130.28,52.6756]
[1725242046185,20.39075909,130.33,130.28,52.6756]
[1725242046383,1.91851715,130.32,130.28,52.6756]
[1725242046682,22.30927624,130.33,130.29,7.675]
[1725242046877,14.63644003,130.34,130.29,19.1874]
[1725242047083,22.30874003,130.34,130.3,52.6744]
[1725242049072,6.4011,130.36,130.31,19.1842]
[1725242049276,19.11905909,130.36,130.32,52.6729]
[1725242049691,21.0371088,130.36,130.32,52.6729]
[1725242050580,14.6360088,130.36,130.32,52.6729]
[1725242052104,14.6360088,130.36,130.32,45.0]
[1725242052298,16.57752862,130.39,130.33,20.71565902]
[1725242052505,9.58689402,130.39,130.34,45.0]
[1725242052806,20.38785909,130.38,130.34,45.0]
[1725242052977,1.91785026,130.37,130.34,45.0]
[1725242053893,1.91785026,130.37,130.29,19.1874]
[1725242053894,30.31238596,130.36,130.29,19.1874]
[1725242054099,12.71795909,130.34,130.29,19.1874]
[1725242054301,1.91837947,130.34,130.29,19.1874]
[1725242054499,1.91837947,130.34,130.29,26.862]
[1725242054500,14.63633856,130.34,130.29,26.862]
[1725242054820,7.6729,130.33,130.29,26.862]
[1725242054996,9.59150006,130.33,130.29,26.862]
[1725242055590,1.91860006,130.33,130.29,26.862]
[1725242057001,1.91860006,130.33,130.3,7.6744]
[1725242057203,20.39025909,130.34,130.3,7.6744]
[1725242057413,1.91831199,130.33,130.3,7.6744]
[1725242057691,22.30861135,130.34,130.3,7.6744]
[1725242057985,17.46941863,130.36,130.31,19.1843]
[1725242058192,1.91790449,130.37,130.32,45.0]
[1725242058392,14.63580057,130.38,130.34,7.6721]
[1725242060595,14.63580057,130.38,130.33,26.854]
[1725242060596,12.71795909,130.36,130.33,26.854]
[1725242060801,1.9180749,130.35,130.33,26.854]
[1725242061707,14.63599776,130.36,130.33,26.854]
[1725242062916,12.71795909,130.34,130.3,26.8601]
[1725242063115,1.91830894,130.33,130.3,26.8601]
[1725242063502,1.91830894,130.33,130.31,7.6739]
[1725242063702,14.63626817,130.34,130.31,7.6739]
[1725242064012,7.6706,130.37,130.33,7.6727]
[1725242064210,14.63594908,130.36,130.33,7.6727]
[1725242065018,1.9180244,130.38,130.32,19.1829]
[1725242065208,12.71795909,130.39,130.33,45.0]
[1725242065410,12.71795909,130.39,130.32,45.0]
[1725242065796,14.6354167,130.39,130.34,19.1796]
[1725242066017,12.71795909,130.37,130.34,19.1796]
[1725242066520,12.71795909,130.39,130.35,7.6712]
[1725242066721,1.91745505,130.39,130.36,45.0]
[1725242066902,14.63541414,130.39,130.36,45.0]
[1725242067102,12.71795909,130.39,130.36,45.0]
[1725242067321,14.6354128,130.39,130.36,45.0]
[1725242068036,22.3050128,130.39,130.34,26.8516]
[1725242068722,12.71795909,130.37,130.34,26.8516]
[1725242068908,14.63576722,130.37,130.34,26.8516]
[1725242069096,14.63576722,130.37,130.34,19.1796]
[1725242070393,12.71795909,130.37,130.34,26.8517]
[1725242071624,12.71795909,130.37,130.34,19.1796]
[1725242072032,1.91781043,130.36,130.32,7.6734]
[1725242072232,1.91781043,130.36,130.33,52.6727]
[1725242072731,1.91781043,130.36,130.33,7.6727]
[1725242072910,20.51514909,130.35,130.31,19.1849]
[1725242073107,12.71795909,130.33,130.31,19.1849]
[1725242073435,14.63629506,130.35,130.31,26.8584]
[1725242074727,22.30839506,130.35,130.31,19.1849]
[1725242074935,12.71795909,130.33,130.31,19.1849]
[1725242075115,12.71795909,130.33,130.3,7.674]
[1725242075437,1.91849397,130.32,130.29,7.6749]
[1725242075607,1.91849397,130.32,130.28,19.1887]
[1725242076105,1.91849397,130.32,130.28,26.864]
[1725242076505,1.91849397,130.32,130.3,7.6741]
[1725242076724,1.91849397,130.32,130.29,7.675]
[1725242078630,9.59199397,130.32,130.28,26.8643]
[1725242078923,12.71795909,130.31,130.27,7.6758]
[1725242079338,1.91876607,130.3,130.27,7.6758]
[1725242080740,14.63676974,130.31,130.27,7.6758]
[1725242083340,14.63676974,130.31,130.28,7.6756]
[1725242083341,12.71795909,130.31,130.28,7.6756]
[1725242083724,12.71795909,130.33,130.29,7.675]
[1725242083927,12.71795909,130.33,130.3,45.0]
[1725242084325,12.71795909,130.33,130.27,19.1903]
[1725242084326,1.91840192,130.32,130.28,7.6756]
[1725242085244,1.91852009,130.32,130.28,7.6756]
[1725242086131,1.91852009,130.32,130.28,9.21055119]
[1725242086530,1.91852009,130.32,130.28,7.6756]
[1725242086955,9.59212009,130.32,130.28,7.6756]
[1725242087248,12.71795909,130.31,130.27,26.8664]
[1725242087432,1.91880194,130.3,130.27,26.8664]
[1725242087642,14.63675413,130.31,130.27,26.8664]
[1725242088421,14.63675413,130.31,130.27,19.1903]
[1725242088422,7.6746,130.3,130.27,19.1903]
[1725242088627,1.91879433,130.3,130.27,19.1903]
[1725242088838,12.71795909,130.31,130.27,19.1903]
[1725242089561,12.71795909,130.31,130.27,26.8661]
[1725242089733,14.63675234,130.31,130.27,26.8661]
[1725242091658,1.91879344,130.34,130.29,19.1875]
[1725242091832,1.91879344,130.34,130.3,45.0]
[1725242093256,9.59109344,130.34,130.3,52.6744]
[1725242094627,12.71795909,130.31,130.28,7.6757]
[1725242094822,12.71795909,130.31,130.29,7.6749]
[1725242095142,12.71795909,130.31,130.28,26.8641]
[1725242097235,1.91875296,130.3,130.28,26.8641]
[1725242097652,14.63672363,130.31,130.28,26.8641]
[1725242098338,12.71795909,130.29,130.27,7.6762]
[1725242099652,12.71795909,130.29,130.26,7.6768]
[1725242100454,12.71795909,130.31,130.28,7.6757]
[1725242100659,14.6367048,130.31,130.28,7.6757]
[1725242101238,12.71795909,130.32,130.28,7.6757]
[1725242101432,12.71795909,130.32,130.27,64.1904]
[1725242101433,14.63645478,130.32,130.29,52.6751]
[1725242101654,14.63645478,130.32,130.29,7.6751]
[1725242102663,14.63645478,130.32,130.28,7.6756]
[1725242102848,14.63645478,130.32,130.29,45.0]
[1725242103052,16.15769315,130.35,130.3,7.674]
[1725242103250,12.71795909,130.34,130.3,9.20879452]
[1725242104064,12.71795909,130.37,130.33,7.6727]
[1725242104257,1.91787467,130.36,130.33,7.6727]
[1725242104565,14.63584662,130.38,130.34,1.53431002]
[1725242104733,12.71795909,130.38,130.35,7.6716]
[1725242105361,1.91763344,130.4,130.35,19.1781]
[1725242105602,21.63333161,130.43,130.39,7.6692]
[1725242105861,12.71795909,130.43,130.39,7.6692]
[1725242107073,20.38495909,130.43,130.39,7.6692]
[1725242107243,14.63510983,130.43,130.39,7.6692]
[1725242107443,14.63510983,130.43,130.4,7.6685]
[1725242107665,12.71795909,130.43,130.4,7.6685]
[1725242107966,54.66427662,130.44,130.39,7.6691]
[1725242108152,1.9170549,130.43,130.39,7.6691]
[1725242110444,9.5839549,130.43,130.39,7.6691]
[1725242111471,39.51716662,130.42,130.38,7.6697]
[1725242111673,1.91735465,130.41,130.38,7.6697]
[1725242113886,1.91735465,130.41,130.37,19.1753]
[1725242113887,1.91735465,130.41,130.37,26.8456]
[1725242114758,9.58555465,130.41,130.37,19.1753]
[1725242119983,9.58555465,130.41,130.36,45.0]
[1725242120187,31.84956662,130.4,130.34,6.1728]
[1725242120378,9.58721684,130.39,130.34,6.1728]
[1725242120616,9.58721684,130.39,130.33,24.069]
[1725242120774,9.58721684,130.39,130.34,52.6721]
[1725242120973,9.58721684,130.39,130.34,45.0]
[1725242121269,9.58721684,130.39,130.34,52.6722]
[1725242121572,1.91781684,130.39,130.36,7.6709]
[1725242122177,31.72407662,130.42,130.37,45.0]
[1725242122378,1.91728213,130.41,130.37,52.6703]
[1725242123600,15.2737,130.44,130.37,52.6703]
[1725242123601,9.58418659,130.43,130.38,7.6697]
[1725242123804,1.91708891,130.43,130.39,45.0]
[1725242124180,1.91705282,130.42,130.38,7.6697]
[1725242124673,1.91705282,130.42,130.39,52.6691]
[1725242124875,1.91704868,130.43,130.39,52.6691]
[1725242126372,1.91704868,130.43,130.39,45.0]
[1725242127297,1.91704868,130.43,130.36,16.0304]
[1725242127298,7.6682,130.41,130.36,16.0304]
[1725242127494,1.91738697,130.4,130.36,16.0304]
[1725242128122,9.5855863,130.41,130.36,16.0304]
[1725242128275,9.5855863,130.41,130.36,23.7013]
[1725242128475,9.5855863,130.41,130.37,45.0]
[1725242130207,22.27807582,130.41,130.37,45.0]
[1725242131472,14.60987582,130.41,130.37,52.6702]
[1725242132113,22.27797582,130.41,130.37,45.0]
[1725242132615,22.27797582,130.41,130.36,19.177]
[1725242132909,7.6687,130.4,130.35,7.6714]
[1725242133106,14.61003915,130.39,130.35,7.6714]
[1725242134108,14.61003915,130.39,130.36,45.0]
[1725242137202,14.61003915,130.39,130.35,7.6714]
[1725242137394,22.27933915,130.39,130.34,7.672]
[1725242137595,22.27933915,130.39,130.35,45.0]
[1725242138009,22.27933915,130.39,130.27,277.9]
[1725242138010,12.69248952,130.37,130.3,35.7769]
[1725242138319,9.58941958,130.36,130.31,7.6735]
[1725242139817,9.58941958,130.36,130.32,45.0]
[1725242147805,12.69248952,130.37,130.32,45.0]
[1725242147806,7.6708,130.37,130.32,52.6732]
[1725242148017,14.61049318,130.39,130.34,7.6722]
[1725242148217,14.61049318,130.39,130.35,45.0]
[1725242149337,22.27989318,130.39,130.35,45.0]
[1725242149711,20.36318952,130.37,130.32,26.8563]
[1725242149912,20.36318952,130.37,130.33,45.0]
[1725242150237,20.36318952,130.37,130.33,52.6727]
[1725242151815,1.91788424,130.36,130.33,52.6727]
[1725242154111,9.58928424,130.36,130.32,19.1831]
[1725242154318,12.69248952,130.35,130.29,19.1872]
[1725242154531,9.59086943,130.34,130.29,26.8618]
[1725242155029,9.59086943,130.34,130.29,25.8618]
[1725242155919,7.6729,130.33,130.29,25.8618]
[1725242156330,1.91826943,130.34,130.3,45.0]
[1725242156519,1.91826943,130.34,130.3,52.6741]
[1725242156838,22.28287128,130.35,130.3,52.6741]
[1725242157910,7.6722,130.34,130.3,52.6741]
[1725242158121,7.6722,130.34,130.3,54.20872468]
[1725242159025,14.61077128,130.35,130.3,54.20872468]
[1725242159026,7.6717,130.35,130.31,9.20842484]
[1725242159226,9.58848105,130.38,130.34,7.672]
[1725242159411,9.58848105,130.38,130.35,45.0]
[1725242159412,7.6702,130.38,130.35,45.0]
[1725242160015,7.6702,130.38,130.35,44.5]
[1725242160215,22.27962337,130.39,130.35,44.5]
[1725242160438,22.27962337,130.39,130.35,52.1715]
[1725242161226,22.27962337,130.39,130.35,44.5]
[1725242162442,12.69248952,130.37,130.33,26.8541]
[1725242162652,14.61026751,130.37,130.34,45.0]
[1725242163022,12.69248952,130.37,130.34,45.0]
[1725242164744,12.69248952,130.37,130.34,44.5]
[1725242165142,20.36338952,130.37,130.34,44.5]
[1725242167047,1.9177673,130.39,130.34,52.1721]
[1725242167221,12.69248952,130.39,130.35,1.53397619]
[1725242167851,12.69248952,130.39,130.34,52.1721]
[1725242168252,20.36188952,130.39,130.34,52.1721]
[1725242168453,22.27934773,130.39,130.34,52.1721]
[1725242171139,14.60994773,130.39,130.33,19.1814]
[1725242171456,7.6726,130.34,130.29,7.6747]
[1725242171628,9.59086919,130.34,130.29,7.6747]
[1725242172656,7.673,130.33,130.3,45.0]
[1725242172863,1.9182745,130.32,130.27,19.1899]
[1725242173212,7.6747,130.3,130.25,7.6771]
[1725242173338,9.59354483,130.3,130.25,7.6771]
[1725242173838,22.28652652,130.29,130.24,26.8727]
[1725242174140,7.6747,130.3,130.25,7.6775]
[1725242174337,12.69248952,130.31,130.24,19.1947]
[1725242174538,12.69248952,130.31,130.27,7.6762]
[1725242175053,12.69248952,130.31,130.24,19.1947]
[1725242175054,1.91862938,130.3,130.26,7.6768]
[1725242175756,22.28544922,130.31,130.26,7.6768]
[1725242175957,22.28544922,130.31,130.27,45.0]
[1725242176132,20.36658952,130.31,130.27,45.0]
[1725242176979,1.91871701,130.3,130.27,45.0]
[1725242177378,22.28539285,130.31,130.27,45.0]
[1725242178167,14.61129285,130.31,130.24,19.1947]
[1725242178370,20.36908952,130.27,130.22,7.6792]
[1725242178577,20.36908952,130.27,130.21,34.5546]
[1725242179079,20.36908952,130.27,130.22,7.6791]
[1725242179080,9.59613289,130.26,130.22,7.6791]
[1725242179466,12.69248952,130.25,130.2,7.6799]
[1725242179670,1.91965357,130.24,130.2,7.6799]
[1725242180482,9.59775357,130.24,130.2,7.6799]
[1725242180889,9.59775357,130.24,130.19,7.6809]
[1725242181069,20.37118952,130.23,130.18,19.2035]
[1725242181401,9.59930328,130.22,130.18,26.885]
[1725242181676,20.37238952,130.21,130.15,19.2083]
[1725242181888,12.69248952,130.19,130.15,19.2083]
[1725242182184,1.92056389,130.18,130.12,19.2124]
[1725242182385,1.9205154,130.19,130.14,19.2089]